{"text_format":"3","workbook":"xlsx","n_sheets":4,"sheets":["Start","Onkosten","Inkomsten","Overzicht"],"not_rendered":{"charts":1,"defined_names":2},"read":"whole","date_system":"1900"}

{"sheet":"Start","index":0,"n_rows":8,"n_cols":2,"rows_kept":8}
[null,"OVER DEZE SJABLOON"]
[null,"Gebruik deze werkmap om de onkosten en inkomsten van een evenement bij te houden."]
[null,"Voer de naam van het evenement in en voer alle gegevens in op de werkbladen Onkosten en Inkomsten."]
[null,"De totale onkosten en totale inkomsten worden automatisch berekend."]
[null,"De winst-en-verliesrekening en de bijbehorende grafiek worden automatisch bijgewerkt op het werkblad Overzicht."]
[null,"Opmerking: "]
[null,"Kolom A van elk werkblad bevat aanvullende instructies. Deze tekst is opzettelijk verborgen. Als u tekst wilt verwijderen, selecteert u kolom A en drukt u op Verwijderen. Als u de tekst zichtbaar wilt maken, selecteert u kolom A en wijzigt u de tekenkleur."]
[null,"Als u meer wilt weten over tabellen, drukt u in een tabel op Shift en F10 en selecteert u de optie Tabel en vervolgens Alternatieve tekst."]

{"sheet":"Onkosten","index":1,"n_rows":33,"n_cols":8,"rows_kept":33,"merged":[[0,5,0,7],[1,1,1,7],[2,6,2,7]]}
["Voer de geschat en werkelijk onkosten voor elke categorie in in de betreffende tabellen op dit werkblad. De totale onkosten worden automatisch berekend. Cellen in deze kolom bevatten handige instructies voor het gebruik van dit werkblad. Druk op de pijl-omlaag om aan de slag te gaan."]
["Voer de naam van evenement in in de cel rechts om deze op alle werkbladen automatisch bij te werken.","Budget van evenement voor \nNaam van evenement"]
["Het label Onkosten staat in cel G3.",{"$nulls":5}," Onkosten"]
["Het label Geschat staat in cel G4 en het label Werkelijk in cel H4.",{"$nulls":5},"Geschat","Werkelijk"]
["Het label Totale onkosten staat in de cel rechts. De geschat totale onkosten worden automatisch berekend in cel G5. De werkelijk totale onkosten en de gegevensbalk met de werkelijk totale onkosten worden automatisch bijgewerkt in cel H5. De volgende aanwijzing staat in cel A7.","Totale onkosten",{"$nulls":4},{"$f":"SUM(C12,C20,C26,C33,G12,G20,G25)","v":{"v":1145,"d":"€ 1,145.00"}},{"$f":"SUM(D12,D20,D26,D33,H12,H20,H25)","v":{"v":395,"d":"€ 395.00"}}]
[]
["Voer de onkosten voor de locatie in in de tabel die in de cel rechts begint, en de onkosten voor hapjes en drankjes in de tabel die in cel F7 begint. De volgende aanwijzing staat in cel A14.","Locatie","Geschat","Werkelijk",null,"Hapjes en drankjes","Geschat","Werkelijk"]
[null,"Kamer- en zaalkosten",{"v":500,"d":"€ 500.00"},{"v":250,"d":"€ 250.00"},null,"Eten en drinken"]
[null,"Personeel op locatie",{"v":400,"d":"€ 400.00"},{"v":50,"d":"€ 50.00"},null,"Drinken"]
[null,"Apparatuur",{"$nulls":3},"Linnengoed"]
[null,"Tafels en stoelen",{"$nulls":3},"Personeel en fooien"]
[null,"Totaal",{"$f":"SUBTOTAL(109,OnkostenVoorDeLocatie[Geschat])","v":{"v":900,"d":"€ 900.00"}},{"$f":"SUBTOTAL(109,OnkostenVoorDeLocatie[Werkelijk])","v":{"v":300,"d":"€ 300.00"}},null,"Totaal",{"$f":"SUBTOTAL(109,OnkostenVoorHapjesEnDrankjes[Geschat])","v":{"v":0,"d":"€ 0.00"}},{"$f":"SUBTOTAL(109,OnkostenVoorHapjesEnDrankjes[Werkelijk])","v":{"v":0,"d":"€ 0.00"}}]
[]
["Voer de onkosten voor versieringen in in de tabel die in de cel rechts begint, en de onkosten voor het programma in de tabel die in cel F14 begint. De volgende aanwijzing staat in cel A22.","Versieringen","Geschat","Werkelijk",null,"Programma","Geschat","Werkelijk"]
[null,"Bloemen",{"v":200,"d":"€ 200.00"},{"v":50,"d":"€ 50.00"},null,"Artiesten"]
[null,"Kaarsen",{"$nulls":3},"Sprekers"]
[null,"Verlichting",{"$nulls":3},"Reis"]
[null,"Ballonnen",{"$nulls":3},"Hotel"]
[null,"Papier",{"$nulls":3},"Anders"]
[null,"Totaal",{"$f":"SUBTOTAL(109,OnkostenVoorVersieringen[Geschat])","v":{"v":200,"d":"€ 200.00"}},{"$f":"SUBTOTAL(109,OnkostenVoorVersieringen[Werkelijk])","v":{"v":50,"d":"€ 50.00"}},null,"Totaal",{"$f":"SUBTOTAL(109,OnkostenVoorHetProgramma[Geschat])","v":{"v":0,"d":"€ 0.00"}},{"$f":"SUBTOTAL(109,OnkostenVoorHetProgramma[Werkelijk])","v":{"v":0,"d":"€ 0.00"}}]
[]
["Voer de onkosten voor Publiciteit in in de tabel die in de cel rechts begint, en de onkosten voor prijzen in de tabel die in cel F22 begint. De volgende aanwijzing staat in cel A28.","Publiciteit","Geschat","Werkelijk",null,"Prijzen","Geschat","Werkelijk"]
[null,"Grafisch ontwerp",{"v":45,"d":"€ 45.00"},{"v":45,"d":"€ 45.00"},null,"Lintjes/medailles/trofeeën"]
[null,"Kopiëren/drukken",{"$nulls":3},"Cadeaus"]
[null,"Portokosten",{"$nulls":3},"Totaal",{"$f":"SUBTOTAL(109,OnkostenVoorPrijzen[Geschat])","v":{"v":0,"d":"€ 0.00"}},{"$f":"SUBTOTAL(109,OnkostenVoorPrijzen[Werkelijk])","v":{"v":0,"d":"€ 0.00"}}]
[null,"Totaal",{"$f":"SUBTOTAL(109,OnkostenVoorPubliciteit[Geschat])","v":{"v":45,"d":"€ 45.00"}},{"$f":"SUBTOTAL(109,OnkostenVoorPubliciteit[Werkelijk])","v":{"v":45,"d":"€ 45.00"}}]
[]
["Voer Diversen onkosten in in de tabel die in de cel rechts begint.","Diversen","Geschat","Werkelijk"]
[null,"Telefoon"]
[null,"Vervoer"]
[null,"Kantoorbenodigdheden"]
[null,"Faxkosten"]
[null,"Totaal",{"$f":"SUBTOTAL(109,DiversenOnkosten[Geschat])","v":{"v":0,"d":"€ 0.00"}},{"$f":"SUBTOTAL(109,DiversenOnkosten[Werkelijk])","v":{"v":0,"d":"€ 0.00"}}]

{"sheet":"Inkomsten","index":2,"n_rows":30,"n_cols":7,"rows_kept":30,"merged":[[1,1,1,6],[2,5,2,6]]}
["Voer de geschat en werkelijk inkomsten voor elke categorie in in de desbetreffende tabellen op dit werkblad. Totale inkomsten worden automatisch berekend. Cellen in deze kolom bevatten handige instructies voor het gebruik van dit werkblad. Druk op de pijl-omlaag om aan de slag te gaan."]
["De naam van het evenement wordt automatisch bijgewerkt in de cel rechts.",{"$f":"Onkosten!B2","v":"Budget van evenement voor \nNaam van evenement"}]
["Het label Inkomsten staat in cel F3.",{"$nulls":4}," Inkomsten"]
["Het label Geschat staat in cel F4 en het label Werkelijk in cel G4.",{"$nulls":4},"Geschat","Werkelijk"]
["Het label Totale inkomsten staat in de cel rechts. De geschat totaal inkomsten worden automatisch berekend in cel F5. De werkelijk totaal inkomsten en de gegevensbalk met de werkelijke totaal inkomsten worden automatisch bijgewerkt in cel G5.","Totale inkomsten",{"$nulls":3},{"$f":"SUM(Entreegeld[[#Totals],[Geschat totaal]],AdvertentiesInProgrammaboekje[[#Totals],[Geschat totaal]],ExposantenEnVerkopers[[#Totals],[Geschat totaal]],VerkoopVanArtikelen[[#Totals],[Geschat totaal]])","v":{"v":1936,"d":"€ 1,936.00"}},{"$f":"SUM(Entreegeld[[#Totals],[Werkelijk totaal]],AdvertentiesInProgrammaboekje[[#Totals],[Werkelijk totaal]],ExposantenEnVerkopers[[#Totals],[Werkelijk totaal]],VerkoopVanArtikelen[[#Totals],[Werkelijk totaal]])","v":{"v":1831,"d":"€ 1,831.00"}}]
["Het label Toegangsbewijzen staat in de cel rechts.","Toegangsbewijzen"]
["Voer het geschat en werkelijk aantal verkochte toegangsbewijzen en de bijbehorende prijzen in in de tabel die in de cel rechts begint. De geschat en werkelijk inkomsten uit verkochte toegangsbewijzen worden automatisch berekend. De volgende aanwijzing staat in cel A12.","Geschat","Werkelijk","Type","Prijs","Geschat totaal","Werkelijk totaal"]
[null,300,278,"Volwassenen à",{"v":5,"d":"€ 5.00"},{"$f":"B8*E8","v":{"v":1500,"d":"€ 1,500.00"}},{"$f":"C8*E8","v":{"v":1390,"d":"€ 1,390.00"}}]
[null,197,195,"Kinderen à",{"v":2,"d":"€ 2.00"},{"$f":"B9*E9","v":{"v":394,"d":"€ 394.00"}},{"$f":"C9*E9","v":{"v":390,"d":"€ 390.00"}}]
[null,42,51,"Andere à",{"v":1,"d":"€ 1.00"},{"v":42,"d":"€ 42.00"},{"v":51,"d":"€ 51.00"}]
[null," ",{"$nulls":3},{"$f":"SUBTOTAL(109,Entreegeld[Geschat totaal])","v":{"v":1936,"d":"€ 1,936.00"}},{"$f":"SUBTOTAL(109,Entreegeld[Werkelijk totaal])","v":{"v":1831,"d":"€ 1,831.00"}}]
["Het label Advertenties in programmaboekje staat in de cel rechts.","Advertenties in programmaboekje"]
["Voer het geschat en werkelijk aantal verkochte advertenties in het programmaboekje en de bijbehorende advertentietarieven in in de tabel die in de cel rechts begint. De geschat en werkelijk inkomsten uit advertenties worden automatisch berekend. De volgende aanwijzing staat in cel A18.","Geschat","Werkelijk","Type","Prijs","Geschat totaal","Werkelijk totaal"]
[{"$nulls":3},"Volledige pagina à",null,{"$f":"B14*E14","v":{"v":0,"d":"€ 0.00"}},{"$f":"C14*E14","v":{"v":0,"d":"€ 0.00"}}]
[{"$nulls":3},"Halve pagina à",null,{"$f":"B15*E15","v":{"v":0,"d":"€ 0.00"}},{"$f":"C15*E15","v":{"v":0,"d":"€ 0.00"}}]
[{"$nulls":3},"Kwart pagina à",null,{"v":0,"d":"€ 0.00"},{"v":0,"d":"€ 0.00"}]
[null," ",{"$nulls":3},{"$f":"SUBTOTAL(109,AdvertentiesInProgrammaboekje[Geschat totaal])","v":{"v":0,"d":"€ 0.00"}},{"$f":"SUBTOTAL(109,AdvertentiesInProgrammaboekje[Werkelijk totaal])","v":{"v":0,"d":"€ 0.00"}}]
["Het label Exposanten of verkopers staat in de cel rechts.","Exposanten/verkopers"]
["Voer het geschat en werkelijk aantal exposanten en verkopers en de bijbehorende standprijzen in in de tabel die in de cel rechts begint. De geschat en werkelijk inkomsten worden automatisch berekend. De volgende aanwijzing staat in cel A24.","Geschat","Werkelijk","Type","Prijs","Geschat totaal","Werkelijk totaal"]
[{"$nulls":3},"Grote stands à",null,{"$f":"B20*E20","v":{"v":0,"d":"€ 0.00"}},{"$f":"C20*E20","v":{"v":0,"d":"€ 0.00"}}]
[{"$nulls":3},"Middelgrote stands à",null,{"$f":"B21*E21","v":{"v":0,"d":"€ 0.00"}},{"$f":"C21*E21","v":{"v":0,"d":"€ 0.00"}}]
[{"$nulls":3},"Kleine stands à",null,{"v":0,"d":"€ 0.00"},{"v":0,"d":"€ 0.00"}]
[null," ",{"$nulls":3},{"$f":"SUBTOTAL(109,ExposantenEnVerkopers[Geschat totaal])","v":{"v":0,"d":"€ 0.00"}},{"$f":"SUBTOTAL(109,ExposantenEnVerkopers[Werkelijk totaal])","v":{"v":0,"d":"€ 0.00"}}]
["Het label Verkoop van artikelen staat in de cel rechts.","Verkoop van artikelen"]
["Voer het geschat en werkelijk aantal verkochte artikelen en de bijbehorende artikelprijzen in in de tabel die in de cel rechts begint. De geschat en werkelijk inkomsten worden automatisch berekend.","Geschat","Werkelijk","Type","Prijs","Geschat totaal","Werkelijk totaal"]
[{"$nulls":3},"Items à",null,{"$f":"B26*E26","v":{"v":0,"d":"€ 0.00"}},{"$f":"C26*E26","v":{"v":0,"d":"€ 0.00"}}]
[{"$nulls":3},"Items à",null,{"$f":"B27*E27","v":{"v":0,"d":"€ 0.00"}},{"$f":"C27*E27","v":{"v":0,"d":"€ 0.00"}}]
[{"$nulls":3},"Items à",null,{"v":0,"d":"€ 0.00"},{"v":0,"d":"€ 0.00"}]
[{"$nulls":3},"Items à",null,{"v":0,"d":"€ 0.00"},{"v":0,"d":"€ 0.00"}]
[null," ",{"$nulls":3},{"$f":"SUBTOTAL(109,VerkoopVanArtikelen[Geschat totaal])","v":{"v":0,"d":"€ 0.00"}},{"$f":"SUBTOTAL(109,VerkoopVanArtikelen[Werkelijk totaal])","v":{"v":0,"d":"€ 0.00"}}]

{"sheet":"Overzicht","index":3,"n_rows":9,"n_cols":4,"rows_kept":9,"merged":[[1,1,1,3],[2,2,2,3],[8,1,8,4],[9,1,9,3]]}
["De winst-en-verliesrekening en de bijbehorende grafiek waarin de totale uitgaven onkosten worden weergegeven, worden automatisch bijgewerkt op dit werkblad. Cellen in deze kolom bevatten handige instructies voor het gebruik van dit werkblad. Druk op de pijl-omlaag om aan de slag te gaan."]
["De naam van evenement wordt automatisch bijgewerkt in de cel rechts.",{"$f":"Onkosten!B2","v":"Budget van evenement voor \nNaam van evenement"}]
["Het label Winst-en-verliesrekening staat in cel C3. De volgende aanwijzing staat in cel A5.",null,"Winst-en-verliesrekening"]
[]
["De tabel met totaal rechts wordt automatisch bijgewerkt. De volgende aanwijzing staat in cel A9.","Totaal","Geschat","Werkelijk"]
[null,"Totale inkomsten",{"$f":"Inkomsten!F5","v":{"v":1936,"d":"€ 1,936.00"}},{"$f":"Inkomsten!G5","v":{"v":1831,"d":"€ 1,831.00"}}]
[null,"Totale onkosten",{"$f":"Onkosten!G5","v":{"v":1145,"d":"€ 1,145.00"}},{"$f":"Onkosten!H5","v":{"v":395,"d":"€ 395.00"}}]
[null,"Totale winst (of verlies)",{"$f":"C6-C7","v":{"v":791,"d":"€ 791.00"}},{"$f":"D6-D7","v":{"v":1436,"d":"€ 1,436.00"}}]
["De cel rechts bevat een gegroepeerd kolomdiagram met de geschat versus werkelijk totale inkomsten en onkosten.","Deze cel bevat een gegroepeerd kolomdiagram met de geschat versus werkelijk totale inkomsten en onkosten."]